bitfinex-derivatives/quotes_SOLF0:USTF0_20250501
["timestamp","ask_amount","ask_price","bid_price","bid_amount"]
[1746142543696,6.6446,150.45,150.41,4.024]
[1746142543893,4.20269931,150.44,150.41,4.024]
[1746142544196,6.6446,150.45,150.41,10.6699]
[1746142544699,6.645,150.44,150.41,1.9972]
[1746142544899,7.95281319,150.46,150.4,165.11100955]
[1746142545298,4.20605557,150.45,150.4,158.46460955]
[1746142545490,4.20605557,150.44,150.41,6.6459]
[1746142545686,4.20605557,150.43,150.41,6.6459]
[1746142545892,4.20413624,150.42,150.41,6.6459]
[1746142546300,6.6445,150.45,150.41,6.6459]
[1746142546499,4.20259753,150.44,150.41,6.6459]
[1746142546696,4.20259753,150.43,150.41,6.6459]
[1746142546997,6.6448,150.44,150.41,6.6459]
[1746142547197,4.20259718,150.43,150.41,6.6459]
[1746142547394,6.6448,150.44,150.41,6.6459]
[1746142547596,4.20115957,150.43,150.41,6.6459]
[1746142547799,6.6446,150.45,150.41,6.6459]
[1746142548002,4.20115871,150.44,150.41,6.6459]
[1746142548193,4.20115871,150.43,150.41,6.6459]
[1746142548390,6.6445,150.45,150.41,6.6459]
[1746142548590,4.20010869,150.44,150.42,6.6457]
[1746142548793,4.20010869,150.43,150.42,6.6457]
[1746142549700,4.20010869,150.43,150.41,6.6459]
[1746142549890,6.6444,150.45,150.41,6.6459]
[1746142550091,4.19925712,150.44,150.38,23.08]
[1746142550293,7.95281319,150.46,150.42,6.6457]
[1746142550294,4.19925712,150.43,150.42,6.6457]
[1746142551899,31.07281319,150.46,150.43,6.6451]
[1746142552198,4.19731245,150.45,150.43,6.6451]
[1746142552398,4.19731245,150.44,150.43,6.6451]
[1746142552801,4.19731245,150.44,150.42,6.6455]
[1746142552993,29.7642,150.46,150.42,6.6455]
[1746142553193,4.1968892,150.45,150.42,6.6455]
[1746142553488,4.1968892,150.44,150.43,6.6452]
[1746142554796,4.19623255,150.44,150.43,6.6452]
[1746142556194,7.95281319,150.49,150.45,6.6443]
[1746142556400,27.31610675,150.48,150.45,6.6443]
[1746142556607,4.19610675,150.47,150.45,6.6443]
[1746142556906,4.19610675,150.46,150.45,6.6443]
[1746142558404,4.19688136,150.46,150.45,6.6443]
[1746142559302,4.19688136,150.46,150.44,6.6446]
[1746142559495,29.763,150.48,150.44,6.6446]
[1746142559693,4.19735399,150.47,150.44,6.6446]
[1746142559895,4.19735399,150.46,150.44,6.6446]
[1746142560094,4.19735399,150.45,150.44,6.6446]
[1746142560299,4.19735399,150.45,150.38,23.08]
[1746142560498,4.19768447,150.44,150.38,23.08]
[1746142560695,23.12,150.48,150.38,23.08]
[1746142560893,6.6441,150.46,150.42,6.6453]
[1746142561101,4.19768447,150.45,150.42,6.6453]
[1746142561302,4.19768447,150.44,150.42,6.6453]
[1746142561504,6.6436,150.47,150.43,6.645]
[1746142561705,4.19806593,150.46,150.43,6.645]
[1746142561898,4.19806593,150.45,150.43,6.645]
[1746142562104,29.7636,150.47,150.44,6.6447]
[1746142562407,4.19809591,150.46,150.44,6.6447]
[1746142562607,4.19809591,150.45,150.44,6.6447]
[1746142563295,379.12,150.5,150.46,6.6439]
[1746142563500,4.19868154,150.49,150.42,23.12]
[1746142563696,4.19868154,150.48,150.43,4.1406]
[1746142563904,4.19868154,150.47,150.43,4.1406]
[1746142564105,379.12,150.5,150.43,4.1406]
[1746142564300,4.1989153,150.49,150.43,6.2364]
[1746142564502,4.1989153,150.48,150.43,6.2364]
[1746142564700,4.1989153,150.47,150.43,6.2364]
[1746142564901,379.12,150.5,150.43,6.2364]
[1746142565106,4.19932531,150.49,150.43,6.2364]
[1746142565306,4.19932531,150.48,150.43,6.2364]
[1746142565606,4.19958895,150.47,150.43,6.2364]
[1746142565794,379.12,150.5,150.43,6.2364]
[1746142565998,4.19958766,150.49,150.43,6.2364]
[1746142566206,4.19958766,150.48,150.43,6.2364]
[1746142566398,4.19958766,150.47,150.43,6.2364]
[1746142566595,385.7622,150.5,150.47,6.6434]
[1746142566800,4.19982691,150.49,150.47,6.6434]
[1746142567098,4.19982691,150.48,150.47,6.6434]
[1746142568302,4.19982691,150.48,150.43,6.2364]
[1746142568508,4.19982691,150.47,150.43,6.2364]
[1746142568711,379.12,150.5,150.43,6.2364]
[1746142568904,4.20041181,150.49,150.45,6.644]
[1746142569104,4.20041181,150.48,150.45,6.644]
[1746142569304,4.20041181,150.47,150.45,6.644]
[1746142569506,4.20041181,150.46,150.45,6.644]
[1746142569910,385.7624,150.5,150.46,6.6439]
[1746142570207,4.20087205,150.49,150.46,6.6439]
[1746142570409,4.20087205,150.48,150.46,6.6439]
[1746142570604,4.20087205,150.47,150.46,6.6439]
[1746142572008,385.7624,150.5,150.46,6.6439]
[1746142573312,4.2014012,150.49,150.46,6.6439]
[1746142573611,4.2014012,150.48,150.46,6.6439]
[1746142573809,4.2014012,150.47,150.46,6.6439]
[1746142574611,4.2014012,150.47,150.45,6.6441]
[1746142574912,4.2014012,150.46,150.45,6.6441]
[1746142575112,385.7624,150.5,150.46,6.6438]
[1746142575414,4.20134858,150.49,150.46,6.6438]
[1746142575712,4.20134858,150.48,150.46,6.6438]
[1746142575909,4.20134858,150.47,150.46,6.6438]
[1746142576711,4.20134858,150.47,150.45,6.6442]
[1746142576913,4.20134858,150.46,150.43,2.1056]
[1746142577108,4.20134858,150.45,150.43,2.1056]
[1746142577316,29.7632,150.48,150.44,6.6444]
[1746142577612,4.20144466,150.47,150.44,6.6444]
[1746142577814,4.20144466,150.46,150.44,6.6444]
[1746142578018,4.20144466,150.45,150.44,6.6444]
[1746142579515,4.20159839,150.45,150.44,6.6444]
[1746142579917,29.7632,150.48,150.44,6.6444]
[1746142580119,23.12,150.48,150.45,6.6443]
[1746142580515,29.763,150.48,150.45,6.6443]
[1746142580718,23.12,150.48,150.45,6.6443]
[1746142581316,4.20151211,150.47,150.45,6.6443]
[1746142581517,4.20151211,150.46,150.45,6.6443]
[1746142582919,23.12,150.48,150.46,6.6438]
[1746142583115,4.20228472,150.47,150.46,6.6438]
[1746142584719,356.0,150.5,150.47,6.6433]
[1746142584920,4.20345778,150.49,150.47,6.6433]
[1746142585221,362.6422,150.5,150.47,6.6433]
[1746142585414,362.6422,150.5,150.46,6.6437]
[1746142586022,4.2040729,150.49,150.46,6.6437]
[1746142586321,362.6422,150.5,150.47,6.6435]
[1746142586322,4.2040729,150.48,150.47,6.6435]
[1746142586520,4.20395616,150.48,150.47,6.6435]
[1746142587621,4.20395616,150.48,150.46,6.6437]
[1746142587822,4.20395616,150.47,150.46,6.6437]
[1746142588222,4.20363715,150.47,150.46,6.6437]
[1746142591522,4.20363715,150.47,150.43,2.1056]
[1746142591714,4.20363715,150.46,150.42,2.0555]
[1746142592019,4.20363715,150.45,150.42,2.0555]
[1746142592224,29.8035,150.47,150.43,6.645]
[1746142592426,4.20428671,150.46,150.43,6.645]
[1746142592613,4.20428671,150.45,150.41,158.44908826]
[1746142592817,4.20428671,150.44,150.41,165.09498826]
[1746142593018,6.6444,150.45,150.41,165.09498826]
[1746142593219,4.20444827,150.44,150.41,165.09498826]
[1746142593521,4.20444827,150.43,150.41,158.44908826]
[1746142593728,4.20475989,150.42,150.39,23.16]
[1746142594028,4.20475989,150.41,150.36,25.1086]
[1746142594229,6.6452,150.43,150.36,25.1086]
[1746142594423,4.20504545,150.42,150.36,25.1086]
[1746142594621,4.20504545,150.41,150.36,25.1086]
[1746142594822,6.6452,150.43,150.39,6.6466]
[1746142595023,23.16,150.47,150.36,25.1086]
[1746142595427,6.6445,150.45,150.41,6.6458]
[1746142595627,23.16,150.47,150.41,6.6458]
[1746142595820,23.16,150.47,150.36,25.1086]
[1746142596024,29.8036,150.47,150.43,6.6451]
[1746142597029,4.205647,150.46,150.43,6.6451]
[1746142597328,4.205647,150.45,150.43,6.6451]
[1746142597627,29.8036,150.47,150.43,6.6451]
[1746142598421,4.20612482,150.46,150.43,6.6451]
[1746142598626,4.20612482,150.45,150.43,6.6451]
[1746142598826,4.20612482,150.44,150.43,6.6451]
[1746142599027,4.20594966,150.44,150.43,6.6451]
[1746142602731,4.20588688,150.44,150.43,6.6451]
[1746142604531,4.20571325,150.44,150.43,6.6451]
[1746142611929,28.2492351,150.47,150.44,6.6448]
[1746142612130,4.20622164,150.46,150.44,6.6448]
[1746142612334,4.20622164,150.45,150.44,6.6448]
[1746142615538,4.20679672,150.45,150.44,6.6448]
[1746142616640,4.20679672,150.45,150.43,6.6451]
[1746142616936,4.20679672,150.44,150.43,6.6451]
[1746142624846,4.20679672,150.44,150.37,23.1]
[1746142625048,9.29603182,150.43,150.37,28.1892351]
[1746142625248,4.20679672,150.42,150.4,6.6463]
[1746142625554,4.20679672,150.41,150.4,6.6463]
[1746142626252,4.20683515,150.41,150.4,6.6463]
[1746142628152,4.20683515,150.41,150.39,6.6468]
[1746142628450,11.7345351,150.43,150.39,6.6468]
[1746142628652,4.20515278,150.42,150.39,6.6468]
[1746142628856,4.20515278,150.41,150.39,6.6468]
[1746142629057,11.7345351,150.43,150.39,6.6468]
[1746142629254,4.20515357,150.42,150.39,6.6468]
[1746142629460,4.20515357,150.41,150.39,6.6468]
[1746142629757,11.7345351,150.43,150.39,6.6468]
[1746142629956,4.2052653,150.42,150.39,6.6468]
[1746142630156,4.2052653,150.41,150.39,6.6468]
[1746142630358,11.7345351,150.43,150.39,6.6468]
[1746142630558,4.20493433,150.42,150.39,6.6468]
[1746142630762,4.20493433,150.41,150.39,6.6468]
[1746142630953,11.7345351,150.43,150.39,6.6468]
[1746142631150,5.0892351,150.41,150.37,23.1]
[1746142631349,4.20493433,150.4,150.37,23.1]
[1746142631555,5.0892351,150.41,150.37,6.6476]
[1746142631556,4.20493433,150.39,150.37,6.6476]
[1746142631758,11.7354351,150.41,150.37,6.6476]
[1746142632058,4.20444215,150.4,150.37,6.6476]
[1746142632260,4.20444215,150.39,150.37,6.6476]
[1746142632458,11.7354351,150.41,150.37,6.6476]
[1746142632863,5.0892351,150.39,150.37,6.6476]
[1746142633363,4.20360433,150.38,150.37,6.6476]
[1746142633560,4.20404258,150.38,150.37,6.6476]
[1746142635165,5.0892351,150.39,150.37,6.6476]
[1746142636065,4.20229848,150.38,150.37,6.6476]
[1746142637357,4.20229848,150.38,150.36,6.6481]
[1746142637557,4.20229848,150.37,150.36,6.6481]
[1746142637867,5.0892351,150.39,150.36,6.6481]
[1746142638058,4.20166532,150.38,150.36,6.6481]
[1746142638366,5.0892351,150.39,150.35,1.9961]
[1746142638670,4.20042887,150.38,150.35,1.9961]
[1746142638965,23.1,150.43,150.35,7.0853351]
[1746142639169,5.0892351,150.41,150.35,7.0853351]
[1746142639363,4.20043199,150.4,150.36,2.108]
[1746142639562,4.20043199,150.39,150.36,2.108]
[1746142639765,5.0892351,150.41,150.36,2.108]
[1746142639966,4.19967695,150.4,150.36,2.108]
[1746142640165,5.0892351,150.41,150.36,2.108]
[1746142640367,4.19940313,150.4,150.37,5.0892351]
[1746142640562,5.0892351,150.41,150.36,2.108]
[1746142640764,4.19940357,150.4,150.38,6.6472]
[1746142641062,4.19940126,150.39,150.38,6.6472]
[1746142642273,5.0892351,150.41,150.38,6.6472]
[1746142642765,11.7354351,150.41,150.37,6.6477]
[1746142643970,4.19837809,150.4,150.37,6.6477]
[1746142644172,11.7354351,150.41,150.37,6.6477]
[1746142646371,4.19785355,150.4,150.37,6.6477]
[1746142646674,11.7354351,150.41,150.37,6.6477]
[1746142646968,6.6466,150.4,150.36,8.7563]
[1746142647572,4.19744068,150.39,150.36,8.7563]
[1746142647873,5.0892351,150.39,150.31,23.18]
[1746142648077,5.0892351,150.37,150.31,23.18]
[1746142648762,5.0892351,150.37,150.32,5.0892351]
[1746142648967,4.19576649,150.36,150.32,5.0892351]
[1746142649169,5.0892351,150.37,150.32,5.0892351]
[1746142649467,5.0892351,150.37,150.36,6.6483]
[1746142649671,9.28406208,150.37,150.36,6.6483]
[1746142651578,23.18,150.38,150.36,6.6483]
[1746142651964,23.18,150.38,150.37,6.6479]
[1746142652267,27.37350318,150.38,150.37,6.6479]
[1746142652580,27.37350318,150.38,150.36,6.6481]
[1746142652772,23.18,150.38,150.36,6.6481]
[1746142654283,23.18,150.38,150.37,6.6479]
[1746142654475,27.37284554,150.38,150.37,6.6479]
[1746142655180,27.37284554,150.38,150.36,6.6481]
[1746142655374,23.18,150.38,150.36,6.6481]
[1746142657780,23.18,150.38,150.37,6.6479]
[1746142657976,27.37292738,150.38,150.37,6.6479]
[1746142658281,4.19324887,150.38,150.34,5.0892351]
[1746142658483,5.0892351,150.39,150.34,5.0892351]
[1746142659184,5.0892351,150.39,150.38,6.6474]
[1746142659780,9.28284562,150.39,150.38,6.6474]
[1746142660273,9.28284562,150.39,150.34,5.0892351]
[1746142660485,4.1944134,150.38,150.34,5.0892351]
[1746142660781,5.0892351,150.39,150.34,5.0892351]
[1746142660975,4.19441336,150.38,150.36,6.648]
[1746142661176,5.0892351,150.39,150.34,5.0892351]
[1746142661376,4.19453687,150.38,150.34,5.0892351]
[1746142661579,5.0892351,150.39,150.37,6.6477]
[1746142661772,4.19527335,150.38,150.37,6.6477]
[1746142662481,4.196027,150.38,150.37,6.6477]
[1746142662881,4.196027,150.38,150.36,6.6481]
[1746142663084,5.0892351,150.39,150.36,6.6481]
[1746142663381,4.19613601,150.38,150.34,5.0892351]
[1746142663583,5.0892351,150.39,150.34,5.0892351]
[1746142663777,4.19677972,150.38,150.34,5.0892351]
[1746142663981,5.0892351,150.39,150.34,5.0892351]
[1746142664278,4.19677972,150.38,150.36,6.6481]
[1746142664477,5.0892351,150.39,150.36,6.6481]
[1746142664677,4.19764831,150.38,150.36,6.6481]
[1746142664883,11.7362351,150.39,150.36,6.6481]
[1746142665081,4.19764831,150.38,150.36,6.6481]
[1746142665282,11.7362351,150.39,150.35,6.6486]
[1746142665483,4.19778881,150.38,150.35,6.6486]
[1746142665782,11.7362351,150.39,150.35,6.6486]
[1746142665981,4.1977896,150.38,150.35,6.6486]
[1746142666178,11.7362351,150.39,150.35,6.6486]
[1746142666378,4.19793819,150.38,150.35,6.6486]
[1746142666578,11.7362351,150.39,150.35,6.6486]
[1746142666779,4.19884671,150.38,150.35,6.6486]
[1746142666981,4.19884671,150.37,150.35,6.6486]
[1746142667181,11.7362351,150.39,150.35,6.6486]
[1746142667481,4.20002259,150.38,150.35,6.6486]
[1746142667682,4.20002259,150.37,150.35,6.6486]
[1746142667882,11.7362351,150.39,150.35,6.6486]
[1746142668086,4.20002258,150.38,150.35,6.6486]
[1746142668290,4.20002258,150.37,150.35,6.6486]
[1746142668479,11.7362351,150.39,150.35,6.6486]
[1746142668677,4.20138125,150.38,150.35,6.6486]
[1746142668884,4.20138125,150.37,150.35,6.6486]
[1746142669079,11.7362351,150.39,150.35,6.6486]
[1746142669282,4.20148189,150.38,150.35,6.6486]
[1746142669482,4.20148189,150.37,150.35,6.6486]
[1746142669687,11.7362351,150.39,150.35,6.6486]
[1746142669887,4.20308589,150.38,150.35,6.6486]
[1746142670087,4.20308589,150.37,150.35,6.6486]
[1746142670385,11.7362351,150.39,150.35,6.6486]
[1746142670386,4.20308589,150.36,150.35,6.6486]
[1746142670890,11.7362351,150.39,150.35,6.6486]
[1746142671083,4.20380539,150.38,150.35,6.6486]
[1746142671283,4.20380539,150.37,150.35,6.6486]
[1746142671483,4.20380539,150.36,150.35,6.6486]
[1746142672582,4.20380539,150.36,150.34,6.649]
[1746142672783,6.6476,150.38,150.34,6.649]
[1746142672978,4.20543284,150.37,150.34,6.649]
[1746142673188,4.20543284,150.36,150.34,6.649]
[1746142673390,6.6476,150.38,150.34,6.649]
[1746142673591,4.20636037,150.37,150.35,6.6488]
[1746142673786,4.20636037,150.36,150.35,6.6488]
[1746142675290,4.20636037,150.36,150.34,6.649]
[1746142675490,4.20636037,150.35,150.31,23.18]
[1746142675691,5.0892351,150.37,150.31,23.18]
[1746142675892,4.20893604,150.36,150.31,23.18]
[1746142676194,4.20893604,150.35,150.31,23.18]
[1746142676496,4.20893604,150.34,150.31,23.18]
[1746142676691,4.20893604,150.33,150.32,6.6499]
[1746142677085,4.20943543,150.33,150.31,23.18]
[1746142677282,5.0892351,150.35,150.33,6.6493]
[1746142677579,4.2087377,150.34,150.3,6.0313]
[1746142677783,4.2087377,150.33,150.3,6.0313]
[1746142677988,4.2087377,150.32,150.31,6.6505]
[1746142680593,4.20620233,150.32,150.31,6.6505]
[1746142681694,5.0892351,150.35,150.32,6.6501]
[1746142681995,4.20529823,150.34,150.3,4.1085]
[1746142682199,4.20529823,150.33,150.3,4.1085]
[1746142682394,5.0892351,150.35,150.3,4.1085]
[1746142682596,4.20448306,150.34,150.3,4.1085]
[1746142682791,4.20448306,150.33,150.3,4.1085]
[1746142682991,5.0892351,150.35,150.33,6.6495]
[1746142683189,4.20448306,150.34,150.33,6.6495]
[1746142683696,4.20375674,150.34,150.33,6.6495]
[1746142684597,4.20375674,150.34,150.32,6.6499]
[1746142684797,4.20375674,150.33,150.3,2.0331]
[1746142684999,4.20375674,150.32,150.29,252.66593551]
[1746142685295,5.0892351,150.35,150.31,6.6502]
[1746142685493,5.0892351,150.33,150.31,6.6502]
[1746142685694,4.20313418,150.32,150.31,6.6502]
[1746142686698,5.0892351,150.33,150.31,6.6502]
[1746142686896,4.20285051,150.32,150.31,6.6502]
[1746142687292,4.20319469,150.32,150.31,6.6502]
[1746142688187,5.0892351,150.33,150.32,6.6501]
[1746142688390,9.29154319,150.33,150.32,6.6501]
[1746142690503,4.20230809,150.33,150.32,6.6501]
[1746142692708,4.20206821,150.33,150.32,6.6501]
[1746142694606,4.20154412,150.33,150.32,6.6501]
[1746142696111,9.29077922,150.33,150.29,247.57670041]
[1746142696312,5.0892351,150.33,150.29,247.57670041]
[1746142696703,5.0892351,150.33,150.3,6.6508]
[1746142696910,5.0892351,150.33,150.29,247.57670041]
[1746142697601,5.0892351,150.31,150.29,247.57670041]
[1746142697806,5.0892351,150.31,150.26,4.0151]
[1746142697998,5.0892351,150.29,150.26,1.9218]
[1746142698511,4.19911742,150.28,150.26,8.5743]
[1746142698709,5.0892351,150.29,150.26,8.5743]
[1746142698909,4.19911598,150.28,150.26,6.6525]
[1746142699101,5.0892351,150.29,150.25,1.9649]
[1746142699302,4.19904174,150.28,150.25,1.9649]
[1746142699501,6.6507,150.31,150.25,1.9649]
[1746142699697,4.19700497,150.3,150.25,1.9649]
[1746142699903,4.19700497,150.29,150.26,6.6523]
[1746142700106,4.19700497,150.28,150.26,6.6523]
[1746142700306,6.6507,150.31,150.22,27.0545]
[1746142700510,4.19506059,150.3,150.22,27.0545]
[1746142700807,4.19506059,150.29,150.22,27.0545]
[1746142701106,6.6511,150.3,150.22,27.0545]
[1746142701300,23.12,150.29,150.22,27.0545]
[1746142701506,23.12,150.29,150.26,6.6525]
[1746142702203,4.19498533,150.28,150.26,6.6525]
[1746142702400,23.12,150.29,150.26,6.6525]
[1746142702604,4.19490571,150.28,150.26,6.6525]
[1746142702810,23.12,150.29,150.26,6.6525]
[1746142703004,4.19490571,150.28,150.26,6.6525]
[1746142703206,23.12,150.29,150.26,6.6525]
[1746142703410,4.19331435,150.28,150.26,6.6525]
[1746142703609,23.12,150.29,150.26,6.6525]
[1746142703911,4.19331431,150.28,150.27,6.6523]
[1746142704313,23.12,150.29,150.27,6.6523]
[1746142706209,23.16,150.3,150.22,27.0545]
[1746142707110,23.16,150.3,150.22,35.02493144]
[1746142707511,23.16,150.3,150.29,6.6514]
[1746142707715,23.16,150.3,150.22,35.02493144]
[1746142708115,23.16,150.3,150.28,6.6518]
[1746142710619,23.16,150.3,150.27,6.6521]
[1746142711323,4.19021488,150.29,150.27,6.6521]
[1746142711622,29.8111,150.3,150.26,6.6527]
[1746142711816,4.1902152,150.29,150.26,6.6527]
[1746142712017,29.8111,150.3,150.26,6.6527]
[1746142712214,4.19021044,150.29,150.26,6.6527]
[1746142712413,29.8111,150.3,150.26,6.6527]
[1746142714424,4.19080251,150.29,150.26,6.6527]
[1746142714618,29.8111,150.3,150.26,6.6527]
[1746142714820,4.19031146,150.29,150.26,6.6527]
[1746142715012,29.8111,150.3,150.26,6.6527]
[1746142715216,4.19031303,150.29,150.27,6.6523]
[1746142715515,29.8111,150.3,150.27,6.6523]
[1746142715712,4.19044538,150.29,150.27,6.6523]
[1746142715914,29.8111,150.3,150.27,6.6523]
[1746142716119,4.19044538,150.29,150.27,6.6523]
[1746142716320,6.6511,150.3,150.27,6.6523]
[1746142716520,4.19077179,150.29,150.27,6.6523]
[1746142716711,29.8111,150.3,150.27,6.6523]
[1746142716917,4.19077179,150.29,150.27,6.6523]
[1746142717117,29.8111,150.3,150.27,6.6523]
[1746142717627,4.19147797,150.29,150.27,6.6523]
[1746142718226,29.8111,150.3,150.27,6.6523]
[1746142718424,4.19210241,150.29,150.27,6.6523]
[1746142718627,6.6511,150.3,150.28,6.6518]
[1746142718820,4.19185804,150.29,150.22,35.02493144]
[1746142719121,4.1925651,150.28,150.22,27.0545]
[1746142719323,29.8111,150.3,150.27,6.6523]
[1746142719525,4.19236805,150.29,150.27,6.6523]
[1746142719730,4.19236805,150.28,150.27,6.6523]
[1746142720123,23.16,150.3,150.28,6.6518]
[1746142720315,356.0,150.33,150.22,35.02493144]
[1746142720625,23.16,150.31,150.28,6.6517]
[1746142720926,4.19328345,150.3,150.28,6.6517]
[1746142721225,23.16,150.31,150.28,6.6517]
[1746142721530,28.25945351,150.31,150.28,6.6517]
[1746142722122,28.25945351,150.31,150.25,5.09945351]
[1746142722521,28.25945351,150.31,150.26,2.0025]
[1746142722724,28.25945351,150.31,150.3,6.651]
[1746142722928,32.45400111,150.31,150.26,2.0025]
[1746142723227,4.1945476,150.3,150.26,7.10195351]
[1746142723430,28.25945351,150.31,150.28,6.6516]
[1746142723632,4.19489514,150.3,150.28,6.6516]
[1746142723924,5.09945351,150.31,150.26,7.10195351]
[1746142724126,4.19489515,150.3,150.28,6.6515]
[1746142724327,5.09945351,150.31,150.26,7.10195351]
[1746142724524,4.1951214,150.3,150.28,6.6516]
[1746142724724,5.09945351,150.31,150.26,7.10195351]
[1746142725024,4.1951214,150.3,150.26,7.10195351]
[1746142725222,5.09945351,150.31,150.28,6.6516]
[1746142725427,4.19538427,150.3,150.26,7.10195351]
[1746142725625,361.09945351,150.33,150.26,30.26195351]
[1746142725827,361.09945351,150.33,150.27,4.1606]
[1746142726634,4.19539418,150.32,150.27,4.1606]
[1746142726838,4.19539418,150.31,150.27,4.1606]
[1746142727026,361.09945351,150.33,150.31,6.6505]
[1746142727222,4.1957833,150.32,150.31,6.6505]
[1746142729436,23.16,150.34,150.32,6.6501]
[1746142729624,4.19704582,150.33,150.32,6.6501]
[1746142729935,4.19704582,150.33,150.31,6.6504]
[1746142730127,4.19704582,150.32,150.31,6.6504]
[1746142731537,4.19774195,150.32,150.27,4.1606]
[1746142731735,4.19774195,150.31,150.27,4.1606]
[1746142732036,23.16,150.34,150.27,4.1606]
[1746142732236,4.19774101,150.33,150.31,6.6502]
[1746142732534,4.19774101,150.32,150.31,6.6502]
[1746142735241,23.16,150.34,150.32,6.6499]
[1746142735534,4.1992904,150.33,150.32,6.6499]
[1746142737637,4.1992904,150.33,150.31,6.6503]
[1746142737837,4.1992904,150.32,150.31,6.6503]
[1746142741143,4.1992904,150.32,150.3,6.6507]
[1746142741340,4.20224684,150.31,150.3,6.6507]
[1746142742141,29.829,150.35,150.3,6.6507]
[1746142742334,4.20279319,150.34,150.3,6.6507]
[1746142742534,4.20279319,150.33,150.3,6.6507]
[1746142742829,4.20279319,150.32,150.3,6.6507]
[1746142743033,4.20279319,150.31,150.3,6.6507]
[1746142743740,4.20231539,150.31,150.27,4.1606]
[1746142743941,4.20231539,150.3,150.27,4.1606]
[1746142744245,4.202296,150.29,150.28,6.6515]
[1746142744435,4.202296,150.29,150.27,4.1606]
[1746142744634,23.18,150.35,150.27,4.1606]
[1746142744835,7.96589829,150.33,150.27,2.0926]
[1746142745032,4.2025175,150.32,150.27,2.0926]
[1746142745337,10.8533175,150.31,150.27,8.7447]
[1746142745633,4.2025175,150.3,150.27,2.0926]
[1746142745942,4.2025175,150.29,150.28,6.6519]
[1746142746235,385.829,150.35,150.27,2.0926]
[1746142746444,4.20275188,150.34,150.27,4.0605]
[1746142746639,4.20275188,150.33,150.27,4.0605]
[1746142746936,4.20275188,150.32,150.27,4.0605]
[1746142747135,4.20275188,150.31,150.3,6.6506]
[1746142747338,4.20293811,150.31,150.3,6.6506]
[1746142751047,4.20425337,150.31,150.3,6.6506]
[1746142751638,6.6493,150.34,150.3,6.6506]
[1746142753549,385.829,150.35,150.31,6.6504]
[1746142754853,6.6492,150.34,150.3,6.6506]
[1746142755046,379.18,150.35,150.27,4.0605]
[1746142755546,385.8291,150.35,150.27,4.0605]
[1746142756047,6.6493,150.34,150.3,6.6507]
[1746142756546,4.20452337,150.33,150.3,6.6507]
[1746142756744,4.20452337,150.32,150.3,6.6507]
[1746142756944,4.20452337,150.31,150.3,6.6507]
[1746142757249,4.20452337,150.31,150.27,4.0605]
[1746142757442,4.20452337,150.3,150.27,4.0605]
[1746142757644,4.20452337,150.29,150.27,4.0605]
[1746142757942,7.96524409,150.34,150.26,23.16]
[1746142758143,4.20525204,150.33,150.26,23.16]
[1746142758344,4.20525204,150.32,150.26,23.16]
[1746142758543,6.651,150.3,150.26,6.6525]
[1746142758738,4.20525204,150.29,150.26,6.6525]
[1746142758941,4.20525204,150.28,150.26,6.6525]
[1746142759146,4.20525204,150.27,150.26,6.6525]
[1746142761053,4.20525204,150.27,150.25,6.653]
[1746142761354,6.6515,150.29,150.25,6.653]
[1746142761548,4.20595316,150.28,150.25,6.653]
[1746142761748,4.20595316,150.27,150.25,6.653]
[1746142762052,6.6515,150.29,150.25,6.653]
[1746142762252,4.20595269,150.28,150.25,6.653]
[1746142762452,4.20595269,150.27,150.25,6.653]
[1746142762652,6.6515,150.29,150.25,6.653]
[1746142762849,4.20551959,150.28,150.26,6.6527]
[1746142763047,4.20551959,150.27,150.23,23.18]
[1746142763248,31.14524409,150.31,150.23,23.18]
[1746142763447,4.20552035,150.3,150.23,23.18]
[1746142763647,4.20552035,150.29,150.23,23.18]
[1746142763847,31.14524409,150.31,150.23,23.18]
[1746142763848,4.20552035,150.28,150.23,23.18]
[1746142764048,4.20552035,150.27,150.23,23.18]
[1746142764250,37.79604409,150.31,150.23,23.18]
[1746142764450,37.79604409,150.31,150.26,6.6525]